[Event "*** Titled Tuesday Blitz"]
[Site "Chess.com"]
[Date "2019.11.05"]
[Round "2"]
[White "imdarealist"]
[Black "Alex_Terzi"]
[Result "0-1"]
[WhiteElo "2228"]
[BlackElo "2497"]
[TimeControl "180+2"]
[EndTime "13:22:40 PST"]
[Termination "Alex_Terzi won by resignation"]

1. d4 {[%clk 0:03:01.9]} 1... Nf6 {[%clk 0:03:00.3]} 2. Bf4 {[%clk 0:02:57.2]}
2... g6 {[%clk 0:02:58.5]} 3. e3 {[%clk 0:02:58.3]} 3... Bg7 {[%clk 0:02:59.3]}
4. c3 {[%clk 0:02:59.5]} 4... O-O {[%clk 0:03:00.2]} 5. Nf3 {[%clk 0:02:57.1]}
5... d6 {[%clk 0:03:01.1]} 6. h3 {[%clk 0:02:57.3]} 6... Nbd7 {[%clk 0:02:53.9]}
7. Bh2 {[%clk 0:02:54.5]} 7... c5 {[%clk 0:02:52.1]} 8. Bd3 {[%clk 0:02:49.9]}
8... b6 {[%clk 0:02:49.8]} 9. Qe2 {[%clk 0:02:50.3]} 9... Bb7 {[%clk 0:02:50.3]}
10. e4 {[%clk 0:02:51.7]} 10... Re8 {[%clk 0:02:42.5]} 11. O-O {[%clk 0:02:49]}
11... e5 {[%clk 0:02:42.3]} 12. Nbd2 {[%clk 0:02:22.4]} 12... Qe7 {[%clk
0:02:32.5]} 13. dxe5 {[%clk 0:02:18.5]} 13... dxe5 {[%clk 0:02:34.4]} 14. Bb5
{[%clk 0:02:08.4]} 14... a6 {[%clk 0:02:33]} 15. Ba4 {[%clk 0:02:03.4]} 15... b5
{[%clk 0:02:32.9]} 16. Bc2 {[%clk 0:02:04.9]} 16... Nh5 {[%clk 0:02:26.1]} 17.
a4 {[%clk 0:02:05.6]} 17... c4 {[%clk 0:02:21.7]} 18. b3 {[%clk 0:01:59.2]}
18... Nf4 {[%clk 0:02:16.3]} 19. Bxf4 {[%clk 0:01:48.1]} 19... exf4 {[%clk
0:02:18.2]} 20. Nd4 {[%clk 0:01:48.2]} 20... Bxd4 {[%clk 0:02:13.4]} 21. cxd4
{[%clk 0:01:43.1]} 21... c3 {[%clk 0:02:14.4]} 22. Nf3 {[%clk 0:01:38.1]} 22...
Bxe4 {[%clk 0:02:14.2]} 23. Rfe1 {[%clk 0:01:35.9]} 23... Nf6 {[%clk 0:02:04.9]}
24. Ne5 {[%clk 0:01:28.9]} 24... Bxc2 {[%clk 0:02:00.2]} 25. Qxc2 {[%clk
0:01:30.8]} 25... Qc7 {[%clk 0:02:00.7]} 26. Rac1 {[%clk 0:01:25]} 26... b4
{[%clk 0:01:56.7]} 27. Qd3 {[%clk 0:01:15.7]} 27... Rad8 {[%clk 0:01:52.9]} 28.
Qxa6 {[%clk 0:01:06.1]} 28... Rxd4 {[%clk 0:01:50.3]} 29. Qxf6 {[%clk
0:01:02.7]} 29... Rd6 {[%clk 0:01:37.6]} 30. Qxf4 {[%clk 0:00:49.6]} 30... Rde6
{[%clk 0:01:34.4]} 31. Qc4 {[%clk 0:00:37.9]} 31... Qxc4 {[%clk 0:01:31.2]} 32.
bxc4 {[%clk 0:00:33.4]} 32... Rxe5 {[%clk 0:01:32.1]} 33. Red1 {[%clk
0:00:34.6]} 33... Rc5 {[%clk 0:01:30]} 34. Rd4 {[%clk 0:00:32.2]} 34... Ra8
{[%clk 0:01:28.9]} 0-1

[Event "*** Titled Tuesday Blitz"]
[Site "Chess.com"]
[Date "2019.11.05"]
[Round "2"]
[White "joppie2"]
[Black "IMRosen"]
[Result "1-0"]
[WhiteElo "2892"]
[BlackElo "2604"]
[TimeControl "180+2"]
[EndTime "13:22:44 PST"]
[Termination "joppie2 won by resignation"]

1. e4 {[%clk 0:03:01.9]} 1... c5 {[%clk 0:02:58.5]} 2. Nf3 {[%clk 0:03:02.6]}
2... Nc6 {[%clk 0:02:58.1]} 3. d4 {[%clk 0:03:02.5]} 3... cxd4 {[%clk
0:02:59.7]} 4. Nxd4 {[%clk 0:03:04.4]} 4... g6 {[%clk 0:03:01.4]} 5. Nc3 {[%clk
0:03:04.1]} 5... Bg7 {[%clk 0:03:02.8]} 6. Be3 {[%clk 0:03:05.7]} 6... Nf6
{[%clk 0:03:03.5]} 7. Bc4 {[%clk 0:03:07.2]} 7... O-O {[%clk 0:03:05.2]} 8. Bb3
{[%clk 0:03:08.2]} 8... Re8 {[%clk 0:03:06.7]} 9. h4 {[%clk 0:03:07.6]} 9... h5
{[%clk 0:02:51.9]} 10. f3 {[%clk 0:02:59.3]} 10... e6 {[%clk 0:02:50.7]} 11. Qe2
{[%clk 0:02:55.5]} 11... d5 {[%clk 0:02:48.5]} 12. O-O-O {[%clk 0:02:56.9]}
12... Qa5 {[%clk 0:02:41.1]} 13. Kb1 {[%clk 0:02:49.4]} 13... Nxd4 {[%clk
0:01:58.4]} 14. Rxd4 {[%clk 0:02:49.2]} 14... Bd7 {[%clk 0:01:38.6]} 15. e5
{[%clk 0:02:46.8]} 15... Nh7 {[%clk 0:01:34.6]} 16. f4 {[%clk 0:02:44.8]} 16...
f5 {[%clk 0:01:30.6]} 17. Rd3 {[%clk 0:02:39.9]} 17... Rec8 {[%clk 0:01:19]} 18.
Nxd5 {[%clk 0:02:39.9]} 18... Qd8 {[%clk 0:00:22.7]} 19. Rhd1 {[%clk 0:02:39.7]}
19... Nf8 {[%clk 0:00:18.2]} 20. Nf6+ {[%clk 0:02:28.1]} 20... Bxf6 {[%clk
0:00:18.3]} 21. exf6 {[%clk 0:02:30]} 21... Rc7 {[%clk 0:00:14.3]} 22. Bd4
{[%clk 0:02:27]} 22... Kf7 {[%clk 0:00:15.1]} 23. Be5 {[%clk 0:02:28.1]} 23...
Rac8 {[%clk 0:00:08.1]} 24. Qd2 {[%clk 0:02:27.7]} 24... Qe8 {[%clk 0:00:06.7]}
25. a3 {[%clk 0:02:13.4]} 25... b6 {[%clk 0:00:04.4]} 26. Rd6 {[%clk 0:02:12.7]}
26... Bc6 {[%clk 0:00:03.5]} 27. Qb4 {[%clk 0:01:55.1]} 27... Rd7 {[%clk
0:00:03.8]} 28. g3 {[%clk 0:01:50]} 28... Rcd8 {[%clk 0:00:03.4]} 29. Ka2 {[%clk
0:01:41.2]} 29... Rxd6 {[%clk 0:00:03.8]} 30. Rxd6 {[%clk 0:01:43.1]} 30... Rxd6
{[%clk 0:00:05.1]} 31. Qxd6 {[%clk 0:01:45]} 31... Qd7 {[%clk 0:00:05.9]} 32.
Qb8 {[%clk 0:01:44.4]} 32... Nh7 {[%clk 0:00:07]} 33. Qh8 {[%clk 0:01:43.7]}
33... Nxf6 {[%clk 0:00:08.2]} 34. Qxf6+ {[%clk 0:01:44.5]} 34... Ke8 {[%clk
0:00:07]} 35. Qxe6+ {[%clk 0:01:44.6]} 35... Kd8 {[%clk 0:00:04.1]} 36. Qxd7+
{[%clk 0:01:44.6]} 36... Bxd7 {[%clk 0:00:04.8]} 37. Bf7 {[%clk 0:01:46.4]}
37... Bc6 {[%clk 0:00:03.7]} 1-0

[Event "*** Titled Tuesday Blitz"]
[Site "Chess.com"]
[Date "2019.11.05"]
[Round "2"]
[White "cool4chess"]
[Black "Faustregel"]
[Result "1-0"]
[WhiteElo "2552"]
[BlackElo "2737"]
[TimeControl "180+2"]
[EndTime "13:23:02 PST"]
[Termination "cool4chess won by resignation"]

1. e4 {[%clk 0:03:01.9]} 1... c5 {[%clk 0:03:00.5]} 2. Nf3 {[%clk 0:03:03.1]}
2... d6 {[%clk 0:03:01.3]} 3. d4 {[%clk 0:03:04.7]} 3... cxd4 {[%clk 0:03:02.6]}
4. Nxd4 {[%clk 0:03:06.2]} 4... Nf6 {[%clk 0:03:04.2]} 5. Nc3 {[%clk 0:03:07.5]}
5... Nc6 {[%clk 0:03:05.4]} 6. Bg5 {[%clk 0:03:07.5]} 6... Bd7 {[%clk
0:03:06.2]} 7. Qd2 {[%clk 0:03:04.5]} 7... Rc8 {[%clk 0:03:06.3]} 8. O-O-O
{[%clk 0:02:47.8]} 8... Nxd4 {[%clk 0:03:01.9]} 9. Qxd4 {[%clk 0:02:47.9]} 9...
Qa5 {[%clk 0:03:03.6]} 10. Bxf6 {[%clk 0:02:43.2]} 10... gxf6 {[%clk 0:03:04]}
11. Kb1 {[%clk 0:02:44.5]} 11... Qc5 {[%clk 0:03:00.3]} 12. Qd2 {[%clk
0:02:39.1]} 12... f5 {[%clk 0:02:59]} 13. Bd3 {[%clk 0:02:35.3]} 13... Bg7
{[%clk 0:02:55.7]} 14. Nd5 {[%clk 0:02:31.5]} 14... Ba4 {[%clk 0:01:47.1]} 15.
Rc1 {[%clk 0:01:40]} 15... h6 {[%clk 0:01:19]} 16. c4 {[%clk 0:01:28.5]} 16...
Qd4 {[%clk 0:01:10.5]} 17. exf5 {[%clk 0:01:17.8]} 17... b5 {[%clk 0:01:04.6]}
18. Rhe1 {[%clk 0:00:55.9]} 18... bxc4 {[%clk 0:01:05]} 19. Nxe7 {[%clk
0:00:53.6]} 19... Kd7 {[%clk 0:00:51.7]} 20. Nxc8 {[%clk 0:00:38.7]} 20... Rxc8
{[%clk 0:00:50.1]} 21. f6 {[%clk 0:00:39.4]} 21... cxd3 {[%clk 0:00:34.1]} 22.
Re7+ {[%clk 0:00:34]} 22... Kd8 {[%clk 0:00:32.1]} 23. Qa5+ {[%clk 0:00:34]}
23... Qb6 {[%clk 0:00:33.2]} 24. Qxb6+ {[%clk 0:00:33.8]} 24... axb6 {[%clk
0:00:33.5]} 25. Rxc8+ {[%clk 0:00:35.4]} 25... Kxc8 {[%clk 0:00:34.7]} 26. fxg7
{[%clk 0:00:36.6]} 26... Kd8 {[%clk 0:00:33.2]} 27. Re1 {[%clk 0:00:35.9]} 27...
d2 {[%clk 0:00:29.4]} 28. Rh1 {[%clk 0:00:37.3]} 28... Ke7 {[%clk 0:00:22.7]}
29. g8=Q {[%clk 0:00:38.3]} 1-0

[Event "*** Titled Tuesday Blitz"]
[Site "Chess.com"]
[Date "2019.11.05"]
[Round "2"]
[White "marianokar"]
[Black "51616516516"]
[Result "1-0"]
[WhiteElo "2471"]
[BlackElo "2194"]
[TimeControl "180+2"]
[EndTime "13:23:03 PST"]
[Termination "marianokar won by resignation"]

1. d4 {[%clk 0:03:01.9]} 1... Nf6 {[%clk 0:02:59]} 2. Nf3 {[%clk 0:02:57.9]}
2... g6 {[%clk 0:02:59.3]} 3. c4 {[%clk 0:02:57.7]} 3... Bg7 {[%clk 0:03:00.6]}
4. Nc3 {[%clk 0:02:58.4]} 4... O-O {[%clk 0:03:02.2]} 5. e4 {[%clk 0:02:58.4]}
5... d6 {[%clk 0:03:03.8]} 6. Be2 {[%clk 0:02:59.8]} 6... e5 {[%clk 0:03:03.2]}
7. Be3 {[%clk 0:03:01]} 7... Re8 {[%clk 0:02:40.1]} 8. d5 {[%clk 0:03:00.8]}
8... a5 {[%clk 0:02:39.9]} 9. Nd2 {[%clk 0:03:00.2]} 9... Na6 {[%clk 0:02:36.4]}
10. a3 {[%clk 0:02:57.7]} 10... Bd7 {[%clk 0:02:30.9]} 11. Rb1 {[%clk
0:02:57.8]} 11... Rf8 {[%clk 0:02:21.1]} 12. b4 {[%clk 0:02:57]} 12... axb4
{[%clk 0:02:10.3]} 13. axb4 {[%clk 0:02:58.9]} 13... b6 {[%clk 0:02:12.2]} 14.
O-O {[%clk 0:02:55]} 14... Ne8 {[%clk 0:02:13.1]} 15. Qb3 {[%clk 0:02:49.1]}
15... f5 {[%clk 0:02:09.4]} 16. f3 {[%clk 0:02:50.4]} 16... f4 {[%clk
0:02:07.4]} 17. Bf2 {[%clk 0:02:48.6]} 17... g5 {[%clk 0:02:07.6]} 18. Ra1
{[%clk 0:02:49.8]} 18... Qc8 {[%clk 0:01:14.6]} 19. Ra3 {[%clk 0:02:03.4]} 19...
Nxb4 {[%clk 0:00:30.1]} 20. Rxa8 {[%clk 0:01:53.4]} 20... Qxa8 {[%clk
0:00:31.8]} 21. Qxb4 {[%clk 0:01:55]} 21... h5 {[%clk 0:00:33.4]} 22. Qb2 {[%clk
0:01:41.6]} 22... g4 {[%clk 0:00:29.1]} 23. Ra1 {[%clk 0:01:42.3]} 23... Qd8
{[%clk 0:00:30.1]} 24. fxg4 {[%clk 0:01:35.4]} 24... hxg4 {[%clk 0:00:29.8]} 25.
g3 {[%clk 0:01:36.6]} 25... Qg5 {[%clk 0:00:26.4]} 26. Nf1 {[%clk 0:01:36.1]}
26... Nf6 {[%clk 0:00:14.3]} 27. Ra7 {[%clk 0:01:34.5]} 27... Nh5 {[%clk
0:00:05.3]} 28. Rxc7 {[%clk 0:01:31.2]} 28... Bc8 {[%clk 0:00:05.3]} 29. Qd2
{[%clk 0:01:24.3]} 29... fxg3 {[%clk 0:00:02.6]} 30. Qxg5 {[%clk 0:01:23.6]}
30... gxf2+ {[%clk 0:00:03.6]} 31. Kh1 {[%clk 0:01:22.9]} 31... Nf4 {[%clk
0:00:03.3]} 1-0

[Event "*** Titled Tuesday Blitz"]
[Site "Chess.com"]
[Date "2019.11.05"]
[Round "2"]
[White "CzechmVIII"]
[Black "amiralfio"]
[Result "0-1"]
[WhiteElo "2094"]
[BlackElo "2428"]
[TimeControl "180+2"]
[EndTime "13:23:04 PST"]
[Termination "amiralfio won on time"]

1. e4 {[%clk 0:03:01.9]} 1... c6 {[%clk 0:02:52.3]} 2. d4 {[%clk 0:03:01.5]}
2... d5 {[%clk 0:02:53.8]} 3. e5 {[%clk 0:03:01.7]} 3... c5 {[%clk 0:02:55.4]}
4. c4 {[%clk 0:03:00.5]} 4... cxd4 {[%clk 0:02:55.8]} 5. Nf3 {[%clk 0:03:01]}
5... Nc6 {[%clk 0:02:53.7]} 6. cxd5 {[%clk 0:02:31]} 6... Qxd5 {[%clk
0:02:55.6]} 7. Nc3 {[%clk 0:02:25]} 7... Qa5 {[%clk 0:02:56.1]} 8. Nxd4 {[%clk
0:02:22.7]} 8... Qxe5+ {[%clk 0:02:56]} 9. Be3 {[%clk 0:02:22.4]} 9... Bd7
{[%clk 0:02:54.9]} 10. Nf3 {[%clk 0:02:07.4]} 10... Qa5 {[%clk 0:02:49.7]} 11.
Qb3 {[%clk 0:01:58.3]} 11... Qb4 {[%clk 0:02:42.7]} 12. Bc4 {[%clk 0:01:37.9]}
12... e6 {[%clk 0:02:35]} 13. O-O {[%clk 0:01:28.1]} 13... Nf6 {[%clk
0:02:30.8]} 14. Nb5 {[%clk 0:01:18]} 14... Rc8 {[%clk 0:02:19.9]} 15. Rac1
{[%clk 0:00:44.5]} 15... a6 {[%clk 0:02:17.5]} 16. Nbd4 {[%clk 0:00:45.5]} 16...
Nxd4 {[%clk 0:02:15.5]} 17. Nxd4 {[%clk 0:00:33.9]} 17... Be7 {[%clk 0:01:58.6]}
18. Qxb4 {[%clk 0:00:29.7]} 18... Bxb4 {[%clk 0:02:00.5]} 19. a3 {[%clk
0:00:30.9]} 19... Be7 {[%clk 0:01:56.5]} 20. Rfd1 {[%clk 0:00:26.9]} 20... O-O
{[%clk 0:01:57.2]} 21. Nf3 {[%clk 0:00:26.1]} 21... Ba4 {[%clk 0:01:43.1]} 22.
Re1 {[%clk 0:00:18.7]} 22... Rfd8 {[%clk 0:01:38.3]} 23. Ne5 {[%clk 0:00:16.9]}
23... h6 {[%clk 0:01:30.9]} 24. Be2 {[%clk 0:00:15.1]} 24... Nd5 {[%clk
0:01:27.5]} 25. Bf3 {[%clk 0:00:05.3]} 25... Nxe3 {[%clk 0:01:15.8]} 26. fxe3
{[%clk 0:00:06.4]} 26... Rxc1 {[%clk 0:01:13.3]} 27. Rxc1 {[%clk 0:00:07.5]}
27... Bg5 {[%clk 0:01:15.2]} 28. Kf2 {[%clk 0:00:05]} 28... Rd2+ {[%clk
0:01:14.9]} 29. Ke1 {[%clk 0:00:02.8]} 29... Rxb2 {[%clk 0:01:11.7]} 30. Rc8+
{[%clk 0:00:03.7]} 30... Kh7 {[%clk 0:01:11.6]} 31. Nxf7 {[%clk 0:00:04.6]}
31... Bxe3 {[%clk 0:01:02.1]} 0-1

[Event "*** Titled Tuesday Blitz"]
[Site "Chess.com"]
[Date "2019.11.05"]
[Round "2"]
[White "Galileo22"]
[Black "DonBroca"]
[Result "1-0"]
[WhiteElo "2415"]
[BlackElo "2005"]
[TimeControl "180+2"]
[EndTime "13:23:09 PST"]
[Termination "Galileo22 won on time"]

1. d4 {[%clk 0:03:01.9]} 1... Nf6 {[%clk 0:02:59.3]} 2. c4 {[%clk 0:03:01.2]}
2... g6 {[%clk 0:03:00.2]} 3. Nc3 {[%clk 0:02:59.6]} 3... Bg7 {[%clk 0:03:01.2]}
4. e4 {[%clk 0:02:58.6]} 4... d6 {[%clk 0:03:02.3]} 5. Nf3 {[%clk 0:02:44.3]}
5... O-O {[%clk 0:03:02.5]} 6. Be2 {[%clk 0:02:44.2]} 6... e5 {[%clk 0:03:03.1]}
7. d5 {[%clk 0:02:34.7]} 7... a5 {[%clk 0:03:02.9]} 8. h3 {[%clk 0:02:31.7]}
8... Na6 {[%clk 0:02:53.8]} 9. Be3 {[%clk 0:02:32]} 9... Nd7 {[%clk 0:02:18.6]}
10. g4 {[%clk 0:01:39.6]} 10... Ndc5 {[%clk 0:01:46.8]} 11. Nd2 {[%clk
0:01:14.4]} 11... f5 {[%clk 0:01:41.1]} 12. f3 {[%clk 0:00:58]} 12... Bh6 {[%clk
0:00:21.4]} 13. Bf2 {[%clk 0:00:38.6]} 13... Bxd2+ {[%clk 0:00:11.7]} 14. Qxd2
{[%clk 0:00:37.1]} 14... fxe4 {[%clk 0:00:12]} 15. fxe4 {[%clk 0:00:29.7]} 15...
Rxf2 {[%clk 0:00:04]} 16. Kxf2 {[%clk 0:00:29.2]} 16... Qh4+ {[%clk 0:00:05.2]}
17. Kg2 {[%clk 0:00:23.3]} 17... Bd7 {[%clk 0:00:03.3]} 18. Raf1 {[%clk
0:00:21.2]} 18... Rf8 {[%clk 0:00:03.1]} 19. Rxf8+ {[%clk 0:00:21]} 19... Kxf8
{[%clk 0:00:05]} 20. Rf1+ {[%clk 0:00:21.4]} 20... Kg8 {[%clk 0:00:06]} 21. Qe3
{[%clk 0:00:20.7]} 21... h5 {[%clk 0:00:05]} 22. Qh6 {[%clk 0:00:16.8]} 1-0

[Event "*** Titled Tuesday Blitz"]
[Site "Chess.com"]
[Date "2019.11.05"]
[Round "2"]
[White "nihalsarin"]
[Black "NTBT_DHS"]
[Result "1-0"]
[WhiteElo "3005"]
[BlackElo "2659"]
[TimeControl "180+2"]
[EndTime "13:23:13 PST"]
[Termination "nihalsarin won by resignation"]

1. Nf3 {[%clk 0:03:01.4]} 1... Nf6 {[%clk 0:03:01.3]} 2. d4 {[%clk 0:03:01.7]}
2... g6 {[%clk 0:03:02.7]} 3. Bf4 {[%clk 0:02:57.6]} 3... Bg7 {[%clk 0:03:03.8]}
4. e3 {[%clk 0:02:59.1]} 4... O-O {[%clk 0:03:05.1]} 5. Nbd2 {[%clk 0:03:00.6]}
5... d6 {[%clk 0:03:05.9]} 6. h3 {[%clk 0:03:02.1]} 6... c5 {[%clk 0:03:07.3]}
7. c3 {[%clk 0:03:02.9]} 7... Nc6 {[%clk 0:03:08.7]} 8. Be2 {[%clk 0:03:03.6]}
8... cxd4 {[%clk 0:03:10.1]} 9. exd4 {[%clk 0:03:05.5]} 9... e5 {[%clk
0:03:11.5]} 10. dxe5 {[%clk 0:02:55]} 10... dxe5 {[%clk 0:03:13.4]} 11. Nxe5
{[%clk 0:02:51.6]} 11... Nd5 {[%clk 0:03:13.7]} 12. Nxc6 {[%clk 0:02:43.4]}
12... bxc6 {[%clk 0:03:15.6]} 13. Bg3 {[%clk 0:02:38.2]} 13... Re8 {[%clk
0:03:16.7]} 14. O-O {[%clk 0:01:40.2]} 14... Bxc3 {[%clk 0:03:14.6]} 15. Bc4
{[%clk 0:01:23]} 15... Bxb2 {[%clk 0:02:58.7]} 16. Rb1 {[%clk 0:01:23.8]} 16...
Bg7 {[%clk 0:02:30.5]} 17. Nf3 {[%clk 0:01:20.7]} 17... Be6 {[%clk 0:02:15.8]}
18. Rb7 {[%clk 0:00:49.3]} 18... Qa5 {[%clk 0:01:54.9]} 19. Qb3 {[%clk
0:00:39.5]} 19... Qc3 {[%clk 0:01:22.6]} 20. Ng5 {[%clk 0:00:40]} 20... Qxb3
{[%clk 0:01:10.8]} 21. axb3 {[%clk 0:00:41.9]} 21... Bf6 {[%clk 0:00:46]} 22.
Nxe6 {[%clk 0:00:35.9]} 22... fxe6 {[%clk 0:00:47.2]} 23. Rd1 {[%clk 0:00:37.5]}
23... Nb6 {[%clk 0:00:39.5]} 24. Be2 {[%clk 0:00:31.9]} 24... c5 {[%clk
0:00:38.5]} 25. Rd6 {[%clk 0:00:28.3]} 25... Bd4 {[%clk 0:00:37.5]} 26. Bg4
{[%clk 0:00:27.2]} 26... Rad8 {[%clk 0:00:27.8]} 27. Bxe6+ {[%clk 0:00:25.7]}
27... Kh8 {[%clk 0:00:29.2]} 28. Rxd4 {[%clk 0:00:25.7]} 1-0

[Event "*** Titled Tuesday Blitz"]
[Site "Chess.com"]
[Date "2019.11.05"]
[Round "2"]
[White "FrenchMonster2002"]
[Black "swisspower96"]
[Result "0-1"]
[WhiteElo "2413"]
[BlackElo "2720"]
[TimeControl "180+2"]
[EndTime "13:23:14 PST"]
[Termination "swisspower96 won by checkmate"]

1. d4 {[%clk 0:03:01.9]} 1... d5 {[%clk 0:03:00.7]} 2. Bf4 {[%clk 0:03:02]} 2...
Nf6 {[%clk 0:02:59.7]} 3. e3 {[%clk 0:03:03]} 3... c5 {[%clk 0:02:59.9]} 4. c3
{[%clk 0:03:03.8]} 4... Nc6 {[%clk 0:02:59.1]} 5. Nd2 {[%clk 0:03:04.7]} 5...
Bf5 {[%clk 0:02:59]} 6. Qb3 {[%clk 0:03:00.5]} 6... Qc8 {[%clk 0:02:59.9]} 7.
Ngf3 {[%clk 0:03:00.4]} 7... h6 {[%clk 0:02:59.8]} 8. h3 {[%clk 0:02:56.6]} 8...
e6 {[%clk 0:02:58.5]} 9. Be2 {[%clk 0:02:47.9]} 9... Be7 {[%clk 0:02:58.3]} 10.
O-O {[%clk 0:02:48.3]} 10... O-O {[%clk 0:02:59.3]} 11. Ne5 {[%clk 0:02:39.4]}
11... c4 {[%clk 0:02:48.8]} 12. Qd1 {[%clk 0:02:38.1]} 12... b5 {[%clk
0:02:50.1]} 13. g4 {[%clk 0:02:16.2]} 13... Bh7 {[%clk 0:02:49.5]} 14. a3 {[%clk
0:02:09.9]} 14... a5 {[%clk 0:02:49.8]} 15. Bg3 {[%clk 0:02:05.9]} 15... Nxe5
{[%clk 0:02:38.5]} 16. dxe5 {[%clk 0:02:03]} 16... Nd7 {[%clk 0:02:37]} 17. f4
{[%clk 0:02:01.1]} 17... Nc5 {[%clk 0:02:22]} 18. Kh2 {[%clk 0:01:27.3]} 18...
Ra6 {[%clk 0:01:52.7]} 19. Nf3 {[%clk 0:01:19.6]} 19... Ne4 {[%clk 0:01:45.6]}
20. Nd4 {[%clk 0:01:17.6]} 20... Rb6 {[%clk 0:01:43.5]} 21. f5 {[%clk
0:01:09.7]} 21... Nxg3 {[%clk 0:01:44.3]} 22. Kxg3 {[%clk 0:01:10.7]} 22... Qc7
{[%clk 0:01:43.6]} 23. Nf3 {[%clk 0:00:46.6]} 23... exf5 {[%clk 0:01:39.1]} 24.
gxf5 {[%clk 0:00:48.5]} 24... Bxf5 {[%clk 0:01:39.3]} 25. Kf2 {[%clk 0:00:30.4]}
25... Be4 {[%clk 0:01:36.5]} 26. Rg1 {[%clk 0:00:19]} 26... Rg6 {[%clk
0:01:36.8]} 27. Qd2 {[%clk 0:00:12.7]} 27... Bc5 {[%clk 0:01:19.1]} 28. Raf1
{[%clk 0:00:07.6]} 28... Bxf3 {[%clk 0:01:18.6]} 29. Bxf3 {[%clk 0:00:08.9]}
29... Qxe5 {[%clk 0:01:19.8]} 30. Ke2 {[%clk 0:00:04.2]} 30... Qh2+ {[%clk
0:01:12.1]} 31. Kd1 {[%clk 0:00:03.1]} 31... Qxg1 {[%clk 0:01:13.4]} 32. Rxg1
{[%clk 0:00:04]} 32... Rxg1+ {[%clk 0:01:15.3]} 33. Kc2 {[%clk 0:00:04.2]} 33...
Re8 {[%clk 0:01:16.4]} 34. Qxd5 {[%clk 0:00:03.4]} 34... Bxe3 {[%clk 0:01:15.2]}
35. Bg4 {[%clk 0:00:02.3]} 35... Rc1# {[%clk 0:01:15.7]} 0-1

[Event "*** Titled Tuesday Blitz"]
[Site "Chess.com"]
[Date "2019.11.05"]
[Round "2"]
[White "arminmusovic"]
[Black "LawrenceTrent"]
[Result "1-0"]
[WhiteElo "2422"]
[BlackElo "2695"]
[TimeControl "180+2"]
[EndTime "13:23:14 PST"]
[Termination "arminmusovic won by resignation"]

1. a3 {[%clk 0:03:01.9]} 1... g6 {[%clk 0:02:48.4]} 2. Nc3 {[%clk 0:03:03.8]}
2... Bg7 {[%clk 0:02:50]} 3. e4 {[%clk 0:03:05.2]} 3... c5 {[%clk 0:02:50.8]} 4.
Nf3 {[%clk 0:03:06]} 4... Nc6 {[%clk 0:02:52]} 5. Bc4 {[%clk 0:03:07.5]} 5... e6
{[%clk 0:02:52.8]} 6. O-O {[%clk 0:03:08.8]} 6... Nge7 {[%clk 0:02:52.4]} 7. Re1
{[%clk 0:03:10.1]} 7... O-O {[%clk 0:02:53.4]} 8. Ba2 {[%clk 0:03:11.3]} 8... b6
{[%clk 0:02:53.7]} 9. d3 {[%clk 0:03:12]} 9... Bb7 {[%clk 0:02:55]} 10. Bg5
{[%clk 0:03:09.2]} 10... h6 {[%clk 0:02:56]} 11. Bh4 {[%clk 0:03:05]} 11... g5
{[%clk 0:02:53.8]} 12. Bg3 {[%clk 0:03:06.3]} 12... Nd4 {[%clk 0:02:52.4]} 13.
Nxd4 {[%clk 0:02:57.7]} 13... cxd4 {[%clk 0:02:53]} 14. Nb5 {[%clk 0:02:51.5]}
14... e5 {[%clk 0:02:50.9]} 15. Nd6 {[%clk 0:02:51.3]} 15... Bc6 {[%clk
0:02:51.7]} 16. Qh5 {[%clk 0:02:51.7]} 16... Kh7 {[%clk 0:02:14.1]} 17. Nxf7
{[%clk 0:02:41.4]} 17... Rxf7 {[%clk 0:02:15.2]} 18. Qxf7 {[%clk 0:02:35.4]}
18... d6 {[%clk 0:02:14.4]} 19. h4 {[%clk 0:02:23.5]} 19... Be8 {[%clk
0:02:15.2]} 20. Qe6 {[%clk 0:02:24.7]} 20... Bd7 {[%clk 0:02:16.1]} 21. Qxd6
{[%clk 0:02:22.8]} 21... Ng6 {[%clk 0:02:12.7]} 22. hxg5 {[%clk 0:02:19.3]}
22... hxg5 {[%clk 0:02:12.4]} 23. Be6 {[%clk 0:02:03.2]} 23... Ba4 {[%clk
0:01:41.5]} 24. Qxd8 {[%clk 0:01:52.4]} 24... Rxd8 {[%clk 0:01:41.6]} 25. b3
{[%clk 0:01:49.2]} 25... Be8 {[%clk 0:01:42.1]} 26. Bf5 {[%clk 0:01:46.7]} 26...
Kg8 {[%clk 0:01:43]} 27. Rec1 {[%clk 0:01:41.5]} 27... Ne7 {[%clk 0:01:43.7]}
28. Be6+ {[%clk 0:01:41.8]} 28... Kf8 {[%clk 0:01:43.7]} 29. c3 {[%clk
0:01:36.7]} 29... Rd6 {[%clk 0:01:44.5]} 30. Bg4 {[%clk 0:01:27]} 30... dxc3
{[%clk 0:01:39.5]} 31. Rxc3 {[%clk 0:01:28.9]} 31... Nc6 {[%clk 0:01:41]} 32.
Rac1 {[%clk 0:01:24.9]} 32... a5 {[%clk 0:01:40.3]} 33. Bh5 {[%clk 0:01:19.7]}
33... Bd7 {[%clk 0:01:41.1]} 34. Bg4 {[%clk 0:01:20.3]} 34... Be8 {[%clk
0:01:41.1]} 35. b4 {[%clk 0:01:20.9]} 35... axb4 {[%clk 0:01:41.9]} 36. axb4
{[%clk 0:01:22.3]} 36... Nxb4 {[%clk 0:01:38.3]} 37. Rc7 {[%clk 0:01:19.8]}
37... Nxd3 {[%clk 0:01:37.9]} 38. Rd1 {[%clk 0:01:13.3]} 38... Bf6 {[%clk
0:01:35.8]} 39. Rc8 {[%clk 0:01:05.6]} 39... Ke7 {[%clk 0:01:33.3]} 40. Rxe8+
{[%clk 0:00:56.6]} 40... Kxe8 {[%clk 0:01:31.2]} 41. Be2 {[%clk 0:00:57.8]}
41... Nf4 {[%clk 0:01:32.2]} 42. Rxd6 {[%clk 0:00:58.8]} 42... Nxe2+ {[%clk
0:01:33.3]} 43. Kf1 {[%clk 0:01:00.4]} 43... Nxg3+ {[%clk 0:01:34.5]} 44. fxg3
{[%clk 0:01:02.3]} 44... Bd8 {[%clk 0:01:34.9]} 45. Re6+ {[%clk 0:01:03.7]}
45... Kf7 {[%clk 0:01:35.6]} 46. Rxe5 {[%clk 0:01:05.6]} 46... Bc7 {[%clk
0:01:36]} 47. Rxg5 {[%clk 0:01:05.2]} 47... Kf6 {[%clk 0:01:34.7]} 48. Rf5+
{[%clk 0:01:06.4]} 48... Ke6 {[%clk 0:01:36.1]} 49. g4 {[%clk 0:01:08]} 49...
Be5 {[%clk 0:01:37.6]} 50. Ke2 {[%clk 0:01:07.9]} 50... b5 {[%clk 0:01:38.9]}
51. Kd3 {[%clk 0:01:09.5]} 51... Kd6 {[%clk 0:01:38.7]} 52. g5 {[%clk 0:01:09]}
52... Ke6 {[%clk 0:01:40.2]} 53. g6 {[%clk 0:01:09.6]} 1-0